Cogmind - Beta 13 @@@ ROGUE MODE // 2024.04.01 @ 15:20:10 Player: Toa of Guts Result: Destroyed by Y-45 Defender with Heavy Assault Rifle Performance ------------- Evolutions (1) 500 Regions Visited (3) 600 Robots Destroyed (30) 150 Value Destroyed (710) 710 Prototype IDs (2) 40 Alien Tech Used (0) 0 Bonus (0) 0 TOTAL SCORE: 2000 Bonus ------- None Cogmind --------- Core Integrity 0/400 Matter 300/300 Energy 125/125 System Corruption 13% Temperature Cool (9) Movement Rolling (95) Ox1 Location -9/Storage Parts ------- > --- POWER (1) -------- Light Ion Engine > --- PROPULSION (2) --- Wheel Wheel > --- UTILITY (4) ------ Large Storage Unit Sensor Array Signal Interpreter Terrain Scanner > --- WEAPON (2) ------- Heavy Assault Rifle Improved Assault Rifle > --- INVENTORY (15) --- Improved Ion Engine Improved Ion Engine Reinforced Ion Engine Aluminum Leg Aluminum Leg Aluminum Leg Aluminum Leg Compact Wheel Sensor Array ECM Suite EM Shotgun Particle Cannon Heavy Assault Rifle Mini Grenade Launcher Mini Grenade Launcher Peak State ------------ > --- POWER ------------ Improved Ion Engine > --- PROPULSION ------- Wheel Compact Wheel > --- UTILITY ---------- Large Storage Unit Sensor Array Signal Interpreter Terrain Scanner > --- WEAPON ----------- Heavy Assault Rifle Improved Assault Rifle > --- INVENTORY -------- Light Ion Engine Improved Ion Engine Reinforced Ion Engine Aluminum Leg Aluminum Leg Aluminum Leg Aluminum Leg Wheel ECM Suite EM Shotgun Particle Cannon Heavy Assault Rifle Mini Grenade Launcher Mini Grenade Launcher [Rating: 15] Favorites ----------- Power Light Ion Engine Engine Light Ion Engine Propulsion Aluminum Leg Treads Light Treads Leg Aluminum Leg Wheel Compact Wheel Hover Unit Aerolev Unit Utility Signal Interpreter Device Sensor Array Storage Large Storage Unit Processor Signal Interpreter Protection Reactive Plating Weapon Assault Rifle Energy Gun Small Laser Ballistic Gun Assault Rifle Slashing Weapon Mining Claw Special Melee Weapon Datajack Build | -11 -10 -9 -9 ------- Run | Yrd Mat Mat Sto Slots Evolved 2 | . . 2 . Power . | . . . . Propulsion . | . . . . Utility 2 | . . 2 . Weapon . | . . . . Parts Attached 50 | 4 10 34 2 Power 6 | . 3 2 1 Engine 6 | . 3 2 1 Core . | . . . . Reactor . | . . . . Propulsion 19 | 2 2 14 1 Treads 4 | 2 . 2 . Leg 7 | . 2 5 . Wheel 6 | . . 5 1 Hover 2 | . . 2 . Flight . | . . . . Utility 15 | 1 3 11 . Device 8 | . 2 6 . Storage 2 | 1 . 1 . Processor 2 | . 1 1 . Hackware . | . . . . Protection 3 | . . 3 . Artifact . | . . . . Weapon 10 | 1 2 7 . Energy Gun 2 | . 1 1 . Energy Cannon . | . . . . Ballistic Gun 6 | 1 1 4 . Ballistic Cannon . | . . . . Launcher . | . . . . Special Weapon . | . . . . Impact Weapon . | . . . . Slashing Weapon 1 | . . 1 . Piercing Weapon . | . . . . Special Melee Weapon 1 | . . 1 . Unidentified Prototypes 2 | . . 2 . Parts Lost 18 | . . 18 . Power 2 | . . 2 . Propulsion 6 | . . 6 . Utility 6 | . . 6 . Weapon 4 | . . 4 . Highest Loss Streak 5 | . . 5 . To Critical Strikes 1 | . . 1 . Average Slot Usage (%) 85 | . 95 79 100 Engine 8 | . 10 7 11 Treads 2 | . 7 . . Leg 10 | . 20 7 . Wheel 9 | . . 12 22 Device 12 | . 13 11 22 Storage 11 | . 14 11 11 Processor 7 | . . 9 11 Protection 1 | . . 2 . Energy Gun 1 | . 4 . . Ballistic Gun 14 | . 23 10 22 Slashing Weapon 3 | . . 4 . Naked Turns . | . . . . Heaviest Build 35 | 7 12 35 35 Greatest Support 40 | 40 40 40 26 Greatest Overweight (x) 10 | 1 . 10 1 Average Overweight (x) . | . . . 1 Largest Inventory Capacity 15 | 8 8 15 15 Average Capacity 12 | 7 8 14 15 Most Carried 15 | 8 8 14 15 Average Carried 9 | 6 7 9 14 Final Capacity 15 | 8 8 15 15 Final Carried 15 | 8 8 14 15 Class Distribution -------------------- 76% | Mutant 15% | Scavenger-Skirmisher 7% | Scavenger-Mutant Dominant Class ---------------- Mutant | -10/Materials Mutant | -9/Materials Scavenger-Skirmisher | -9/Storage Resources | -11 -10 -9 -9 ----------- Run | Yrd Mat Mat Sto Matter Collected 943 | 231 185 449 78 Remotely . | . . . . Salvage Created 917 | . 224 611 82 Parts 71 | . 22 41 8 Haulers Intercepted . | . . . . Recyclers Shooed 1 | . . 1 . Parts Field Recycled . | . . . . Retrieved Matter . | . . . . Parts Self-Destructed . | . . . . Prevented . | . . . . Kills | -11 -10 -9 -9 ------- Run | Yrd Mat Mat Sto Combat Hostiles Destroyed 21 | . 8 12 1 Melee 7 | . . 7 . Guns 14 | . 8 5 1 Classes Destroyed 6 | . 3 3 . Worker 2 | . . 2 . Watcher 7 | . 2 4 1 Swarmer 8 | . 6 2 . Grunt 9 | . 2 7 . Brawler 1 | . . 1 . Sentry 3 | . . 2 1 Best Kill Streak 3 | . 3 3 1 Combat Bots Only 3 | . 3 3 1 Max Kills in Single Turn 1 | . 1 1 1 Gunslinging . | . . . . Exploded . | . . . . Melee 1 | . . 1 . Uniques/NPCs Destroyed . | . . . . Combat | -11 -10 -9 -9 -------- Run | Yrd Mat Mat Sto Hostile Shots Fired 224 | . 36 184 4 Missed 39 | . 6 32 1 Damage Taken 2170 | . 279 1848 43 Core 486 | . 77 394 15 Absorbed by Shields 23 | . . 23 . Core Remaining (%) 84 | 100 69 . . Volleys Fired 65 | . 26 35 4 Largest 2 | . 2 2 2 Hottest 68 | . 60 68 46 Shots Fired 115 | . 52 55 8 Gun 115 | . 52 55 8 Cannon . | . . . . Launcher . | . . . . Special . | . . . . Kinetic 108 | . 46 54 8 Thermal 6 | . 6 . . Explosive . | . . . . Electromagnetic 1 | . . 1 . Robot Hit Streak 7 | . 6 7 3 Robot Miss Streak 5 | . 5 3 1 Penetration Max . | . . . . Secondary Targets 2 | . 2 . . Max Gunslinging Chain 1 | . 1 . . Shots Hit Robots 93 | . 25 65 3 Core Hits 43 | . 14 26 3 Critical Kills . | . . . . Critical Parts Destroyed . | . . . . Critical Strikes . | . . . . Melee Attacks 42 | . . 42 . Impact . | . . . . Slashing 42 | . . 42 . Piercing . | . . . . Sneak Attacks 2 | . . 2 . Combat Hostiles . | . . . . Follow-up Attacks . | . . . . Damage Inflicted 1481 | . 318 1114 49 Guns 773 | . 318 406 49 Cannons . | . . . . Explosions . | . . . . Melee 708 | . . 708 . Ramming . | . . . . Kinetic 720 | . 265 406 49 Thermal 53 | . 53 . . Explosive . | . . . . Electromagnetic . | . . . . Impact . | . . . . Slashing 708 | . . 708 . Piercing . | . . . . Highest Corruption 13 | . 5 13 13 Average Corruption 11 | . 4 12 13 Corruption Purged . | . . . . Corruption Blocked . | . . . . Effects 31 | . 6 19 6 Message Errors 4 | . . 3 1 Matter Fused 10 | . 3 4 3 Heat Flow Errors 7 | . . 6 1 Energy Discharges 4 | . 2 2 . Parts Rejected 1 | . . 1 . Data Loss (minor) 4 | . 1 2 1 Data Loss (major) 1 | . . 1 . Overload Shots . | . . . . Overflow Damage 19 | . . 19 . Projectiles . | . . . . Explosions . | . . . . Melee 19 | . . 19 . Knockbacks . | . . . . Impact . | . . . . Kinetic . | . . . . Secondary . | . . . . Self-Inflicted Damage . | . . . . Shots . | . . . . Rammed . | . . . . Targets Rammed . | . . . . Kicked . | . . . . Crushed . | . . . . Highest Temperature 279 | . 12 279 175 Average Temperature 82 | . 8 93 68 Received Heat Transfer 991 | . 72 901 18 Siege Activations . | . . . . Robots Corrupted . | . . . . Combat Hostiles . | . . . . Parts Fried . | . . . . Impact Corruptions . | . . . . Robots Melted . | . . . . Combat Hostiles . | . . . . Parts Melted . | . . . . Heat Transferred 125 | . 125 . . Parts Sabotaged . | . . . . Parts Stolen . | . . . . Parts Stripped . | . . . . Power Chain Reactions . | . . . . Alert | -11 -10 -9 -9 ------- Run | Yrd Mat Mat Sto Peak Influence 205 | . 205 204 110 Initial 57 | . . 14 57 Average 66 | . 57 73 74 Maximum Alert Level 1 | . 1 1 . Low Security (%) 97 | 100 94 98 100 Level 1 2 | . 5 1 . Level 2 . | . . . . Level 3 . | . . . . Level 4 . | . . . . Level 5 . | . . . . High Security . | . . . . Max Security . | . . . . Squads Dispatched 3 | . . 2 1 Investigation 1 | . . 1 . Extermination . | . . . . Reinforcement 2 | . . 1 1 Assault . | . . . . Garrison . | . . . . Intercept . | . . . . Searches Triggered . | . . . . Construction Impeded . | . . . . Haulers Reinforced . | . . . . Active Scanning Responses . | . . . . Cargo Convoy Interrupts . | . . . . Stealth | -11 -10 -9 -9 --------- Run | Yrd Mat Mat Sto Distress Signals 2 | . . 1 1 Communications Jammed . | . . . . Distress Signals . | . . . . Times Spotted 50 | . 12 33 5 Peak Tracking Total 6 | . 3 6 3 Tactical Retreats 8 | . . 8 . Traps | -11 -10 -9 -9 ------- Run | Yrd Mat Mat Sto Traps Triggered 4 | . 3 1 . Indirectly . | . . . . Trap Hack Attempts . | . . . . Triggered . | . . . . Disarmed . | . . . . Reprogrammed . | . . . . Reused . | . . . . Traps Extracted . | . . . . Installed . | . . . . Triggered . | . . . . Machines | -11 -10 -9 -9 ---------- Run | Yrd Mat Mat Sto Machines Disabled . | . . . . Max in Single Turn . | . . . . Machines Repaired . | . . . . Machines Dismantled . | . . . . Machines Sabotaged . | . . . . Overloaded Fab Kills . | . . . . Hacking | -11 -10 -9 -9 --------- Run | Yrd Mat Mat Sto Machines Accessed . | . . . . Terminals . | . . . . Fabricators . | . . . . Repair Stations . | . . . . Recycling Units . | . . . . Scanalyzers . | . . . . Garrison Access . | . . . . Total Hacks . | . . . . Successful . | . . . . Failed . | . . . . Catastrophic . | . . . . Database Lockouts . | . . . . Manual . | . . . . Terminals . | . . . . Fabricators . | . . . . Repair Stations . | . . . . Recycling Units . | . . . . Scanalyzers . | . . . . Garrison Access . | . . . . Terminal Hacks . | . . . . Fabricator Hacks . | . . . . Repair Station Hacks . | . . . . Recycling Unit Hacks . | . . . . Scanalyzer . | . . . . Garrison Access Hacks . | . . . . Unauthorized Hacks . | . . . . Terminals . | . . . . Fabricators . | . . . . Repair Stations . | . . . . Recycling Units . | . . . . Scanalyzers . | . . . . Garrison Access . | . . . . Data Cores Recovered . | . . . . Used . | . . . . Hacking Detections . | . . . . Full Trace Events . | . . . . Feedback Events . | . . . . Feedback Blocked . | . . . . Robot Schematics Acquired . | . . . . Robots Built . | . . . . Authchips . | . . . . Time . | . . . . Total Robot Build Rating . | . . . . Part Schematics Acquired . | . . . . Parts Built . | . . . . Authchips . | . . . . Time . | . . . . Total Part Build Rating . | . . . . Parts Repaired . | . . . . Time . | . . . . Parts Recycled . | . . . . Recycled Matter . | . . . . Retrieved Matter . | . . . . Retrieved Components . | . . . . Parts Scanalyzed . | . . . . Part Schematics Acquired . | . . . . Parts Damaged . | . . . . Bothacking | -11 -10 -9 -9 ------------ Run | Yrd Mat Mat Sto Used RIF Installer . | . . . . Robots Hacked . | . . . . Non-combat . | . . . . Combat . | . . . . Robot Hacks Applied . | . . . . Relay Couplers Released . | . . . . Fabnet Peak Effective % . | . . . . Robots Rewired . | . . . . Allies Hacked . | . . . . Hacks Repelled . | . . . . Allies | -11 -10 -9 -9 -------- Run | Yrd Mat Mat Sto Total Allies . | . . . . Largest Group . | . . . . Highest-Rated Group . | . . . . Highest-Rated Ally . | . . . . Total Orders . | . . . . Ally Attacks . | . . . . Total Damage . | . . . . Kills . | . . . . Allies Corrupted . | . . . . Allies Melted . | . . . . Intel | -11 -10 -9 -9 ------- Run | Yrd Mat Mat Sto Robot Analysis Total . | . . . . Derelict Logs Recovered . | . . . . Drone Launches . | . . . . Drone Recoveries . | . . . . Exploration | -11 -10 -9 -9 ------------- Run | Yrd Mat Mat Sto Turns Passed 2086 | 92 559 1313 122 Spaces Moved 1173 | 52 308 736 77 Core 9 | 6 . 3 . Treads 141 | 46 86 9 . Legs 458 | . 222 236 . Wheels 565 | . . 488 77 Hover . | . . . . Flight . | . . . . Fastest Speed 50 | 50 120 95 95 Average Speed 126 | 150 131 124 104 Slowest Speed 550 | 160 160 550 105 Overloaded Moves . | . . . . Propulsion Burnouts . | . . . . Robots Hopped . | . . . . Cave-ins Triggered . | . . . . Exploration Rate (%) 35 | 4 67 54 16 Regions Visited 3 Branch Regions 1 Pre-discovered Areas . | . . . . Known Exits Taken 2 | . 1 1 . Unknown Exits Taken 1 | 1 . . . Scrap Searched . | . . . . Spaces Dug . | . . . . Terrain Destroyed . | . . . . Melee . | . . . . Projectile . | . . . . AOE . | . . . . Terrain Rammed . | . . . . Walls Destroyed . | . . . . Machines Disabled . | . . . . Actions | -11 -10 -9 -9 --------- Run | Yrd Mat Mat Sto Total 1583 | 64 415 995 109 Wait 196 | . 57 114 25 Move 1170 | 51 307 735 77 Hop . | . . . . Pick Up 46 | 9 8 28 1 Fast Attach 6 | 3 1 2 . Attach 29 | 1 3 25 . Detach 3 | . . 3 . Swap 15 | . 6 7 2 Drop 11 | . 7 4 . Fire 65 | . 26 35 4 Melee 42 | . . 42 . Ram . | . . . . Kick . | . . . . Crush . | . . . . Escape Stasis . | . . . . Rewire . | . . . . Trap . | . . . . Miscellaneous . | . . . . Route ------- -11/Scrapyard -10/Materials (discovered 4 exits: *Mat x2 / [*Min x2]) -9/Materials (discovered 3 exits: *Mat x2 / *Sto) -9/Storage History --------- Turn | Location | Event 12 | -11/Scrapyard | Discovered new exit (range 15) 93 | -11/Scrapyard | Entered Materials 227 | -10/Materials | Discovered new exit (range 7) 316 | -10/Materials | Build established: Mutant 424 | -10/Materials | Discovered new exit (range 3) 587 | -10/Materials | Discovered new exit (range 5) 632 | -10/Materials | Discovered new exit (range 16) 651 | -10/Materials | Identified exit to Materials 652 | -10/Materials | Entered another Materials area 652 | -9/Materials | Evolved 2 slots: Utility x2 1159 | -9/Materials | Core integrity fell below 50% 1187 | -9/Materials | Lost 5 parts (4n1u) 1201 | -9/Materials | Discovered new exit (range 9) 1310 | -9/Materials | Identified exit to Materials 1453 | -9/Materials | Core integrity fell below 20% 1459 | -9/Materials | Lost 4 parts (1p2n1u) 1536 | -9/Materials | System corruption reached 10% 1566 | -9/Materials | Lost 5 parts (3u2w) 1809 | -9/Materials | Discovered new exit (range 13) 1878 | -9/Materials | Identified exit to Storage 1893 | -9/Materials | Discovered exit to Materials (range 8) 1965 | -9/Materials | Entered Storage 2057 | -9/Storage | Build established: Scavenger-Skirmisher 2087 | -9/Storage | Destroyed by Y-45 Defender with Heavy Assault Rifle Last Messages --------------- R-06 Scavenger collects Hover Unit. Acquired Sensor Array. Acquired 27 matter. R-06 Scavenger collects Visual Processing Unit. R-06 Scavenger collects Hover Unit. K-01 Serf collects debris. /IENF5WM|%60RPWHSVBW K-01 Serf collects debris. System corrupted: Heat flow error (+197). K-01 Serf collects debris. Y-45 Defender destroyed. K-01 Serf collects debris. Acquired 25 matter. K-01 Serf collects debris. Acquired 10 matter. System corrupted: Matter fused (-6). Acquired 6 matter. Acquired 10 matter. K-01 Serf collects debris. R-06 Scavenger collects Hvy. Assault Rifle. Map ----- +----------------------------------------------------+ | ??????????????????????????????????? | | ??????????????????????????????????? | | ??????????????????????????????????? | | ??????????????????????????????????? | | ??????????????????????????????????? | | ??????????????????????????????????? | | ??????????????????????????????????? | | ??????????????????????????????????? | | ??????????????????????????????????? | | ??????????????????????????????????? | | ????????? Y ??????????????????????? | | ????????? ??????????????????????? | | ????????? ??????????????????????? | | ????????# #?????????????????????? | | ????????# #?????????????????????? | | ????????# #?????????????????????? | | ???#????# #?????????????????????? | | ????????# #?????????????????????? | | ????????# #???????"?????????????? | | ######### #? ???????????????????? | | # # #??????????x??????????? | | # # #??? ?????????????????? | | # # #########?????????????? | | # # # ?????????????? | | # # + """x #????????????? | | # # @ # """ #????????????? | | # !#[ # """ +?? ???????? | | # %;= + #?????????? | | # # # """ #?????????# | | # #r # """ #?#??????? | | # # # """ #???????? | | ######### # ???#????? | | ? # ##########??????? | | ?? # # #?? ???? ? | | ? """"" # + "?"" #??? ?? | | # """"" # # "? ?" #?????? "T" | | # """"" # # "??? " #????? """ | | # + + "???"" ###### | | # """"" # # "? "" + | | # """"" # # """" ######## | | # """"" # # #????????? ? | | ?? # # #????????? ??? | | ? # #######+##?? ?????????? | | ?#" "#########????????????????????? | | ??"R"????????#????????????????????? | | ????????????#????#????????????????? | | ??????????????????????????????????? | | ?????????????????????????????#????? | | ?????????????????????????#????????? | | ????????????????????#?????????????? | +----------------------------------------------------+ Best States ------------- Heat Dissipation 28 Energy Generation 12 Energy Capacity 265 Matter Stores 300 Matter Capacity 300 Sight Range 16 Robot Scan Range 14 Terrain Scan Range 16 Terrain Scan Density 10 Armor Coverage 150 Resistance: KI 20 Evasion (%) 55 Recoil Reduction 2 Item Schematics ----------------- None Robot Schematics ------------------ None Fabricated ------------ Nothing Alien Tech Used ----------------- None Achievements -------------- None Challenges ------------ None Game ------ Seed CloakingHeavyStabilizer Manual? 0 Play Time 00:31:13 Cumulative 13.0 hours Start 2024.04.01 @ 14:50:32 End 2024.04.01 @ 15:20:10 Sessions 1 Manual Loads 0 Difficulty Rogue Special Mode None Game No. 13 Rogue 13 Adventurer 0 Explorer 0 Win Type - Total 0 Types 0/0/0/0/0/0/0/0/0 Lore% 11 Gallery% 16 Achievement% 14 Wizard Run 0 Options --------- Layout 0 ASCII 0 Keyboard 0 Movement Mouse Keybinds 0 Fullscreen 1 Font 24/X11 Map View 76x50 Zoom Use 0% Tactical HUD 0 Map Filters NONE Filters NONE Steam 1 RUN: 13789cbf-346e-492b-9bed-6345203b1e69